bitfinex-derivatives/quotes_BTCF0:USTF0_20251228
["timestamp","ask_amount","ask_price","bid_price","bid_amount"]
[1766896998763,0.057,87808.0,87794.0,0.0113982]
[1766896998965,0.02473758,87807.0,87794.0,0.0113982]
[1766896999164,0.02473758,87806.0,87794.0,0.0113982]
[1766896999365,0.02473758,87805.0,87794.0,0.0113982]
[1766896999665,0.02473758,87804.0,87794.0,0.0113982]
[1766896999866,0.02473758,87803.0,87794.0,0.0113982]
[1766897000060,0.02473758,87802.0,87794.0,0.0113982]
[1766897000261,0.02473758,87801.0,87794.0,0.0113982]
[1766897000462,0.02473758,87800.0,87794.0,0.0113982]
[1766897000664,8e-08,87799.0,87794.0,0.0113982]
[1766897000859,0.057,87808.0,87794.0,0.0113982]
[1766897003270,0.057,87808.0,87792.0,0.00017082]
[1766897004070,0.0113969,87805.0,87792.0,0.00017082]
[1766897005368,0.0683965,87808.0,87792.0,0.00017082]
[1766897007974,0.057,87808.0,87781.0,0.06158912]
[1766897008180,0.11433005,87802.0,87782.0,0.15388]
[1766897008376,0.0113969,87805.0,87789.0,0.0113988]
[1766897008580,0.11433005,87800.0,87782.0,0.15388]
[1766897009377,0.0113969,87805.0,87782.0,0.15388]
[1766897010182,0.0113969,87805.0,87788.0,0.0113989]
[1766897012682,0.02460979,87804.0,87788.0,0.0113989]
[1766897012883,0.02460979,87803.0,87788.0,0.0113989]
[1766897013092,0.02460979,87802.0,87788.0,0.0113989]
[1766897013286,0.02460979,87801.0,87788.0,0.0113989]
[1766897013483,0.02460979,87800.0,87788.0,0.0113989]
[1766897013783,0.0113969,87805.0,87788.0,0.0113989]
[1766897013983,0.02460965,87804.0,87788.0,0.0113989]
[1766897014184,0.02460965,87803.0,87788.0,0.0113989]
[1766897014384,0.02460965,87802.0,87788.0,0.0113989]
[1766897014584,0.02460965,87801.0,87788.0,0.0113989]
[1766897014785,0.02460965,87800.0,87788.0,0.0113989]
[1766897014983,0.0113969,87805.0,87788.0,0.0113989]
[1766897015178,0.02461003,87804.0,87788.0,0.0113989]
[1766897015384,0.02461003,87803.0,87788.0,0.0113989]
[1766897015684,0.02461003,87802.0,87788.0,0.0113989]
[1766897015885,0.02461003,87801.0,87788.0,0.0113989]
[1766897016088,0.02461003,87800.0,87788.0,0.0113989]
[1766897016287,0.0113969,87805.0,87788.0,0.0113989]
[1766897016479,0.02460982,87804.0,87788.0,0.0113989]
[1766897016681,0.02460982,87803.0,87788.0,0.0113989]
[1766897016882,0.02460982,87802.0,87788.0,0.0113989]
[1766897017084,0.11433005,87800.0,87788.0,0.0113989]
[1766897019392,0.0113969,87805.0,87789.0,0.057]
[1766897019577,0.11433005,87800.0,87789.0,0.057]
[1766897019980,0.0113969,87805.0,87789.0,0.057]
[1766897020191,0.02460964,87804.0,87789.0,0.057]
[1766897020387,0.0113969,87805.0,87789.0,0.057]
[1766897020388,0.02460964,87803.0,87789.0,0.057]
[1766897020599,0.02460964,87802.0,87789.0,0.057]
[1766897020788,0.02460964,87801.0,87789.0,0.057]
[1766897020993,0.02460964,87800.0,87789.0,0.057]
[1766897021192,0.0113969,87805.0,87789.0,0.057]
[1766897021393,0.02460957,87804.0,87789.0,0.057]
[1766897021595,0.02460957,87803.0,87789.0,0.057]
[1766897021793,0.02460957,87802.0,87789.0,0.057]
[1766897021983,0.02460957,87801.0,87789.0,0.057]
[1766897022183,0.02460957,87800.0,87790.0,0.0113987]
[1766897022382,0.0113969,87805.0,87790.0,0.0113987]
[1766897022580,0.02460959,87804.0,87790.0,0.0113987]
[1766897022794,0.02460959,87803.0,87790.0,0.0113987]
[1766897022994,0.02460959,87802.0,87790.0,0.0113987]
[1766897023188,0.02460959,87801.0,87790.0,0.0113987]
[1766897023388,0.02460959,87800.0,87790.0,0.0113987]
[1766897023583,0.0113969,87805.0,87790.0,0.0113987]
[1766897023786,0.0246096,87804.0,87790.0,0.0113987]
[1766897023988,0.0246096,87803.0,87790.0,0.0113987]
[1766897024195,0.0246096,87802.0,87790.0,0.0113987]
[1766897024495,0.0246096,87801.0,87790.0,0.0113987]
[1766897024693,0.0246096,87800.0,87790.0,0.0113987]
[1766897024894,0.0113969,87805.0,87790.0,0.0113987]
[1766897025080,0.02460962,87804.0,87790.0,0.0113987]
[1766897025283,0.02460962,87803.0,87790.0,0.0113987]
[1766897025495,0.02460962,87802.0,87790.0,0.0113987]
[1766897025696,0.02460962,87801.0,87790.0,0.0113987]
[1766897025997,0.02460962,87800.0,87790.0,0.0113987]
[1766897026197,0.02460962,87799.0,87790.0,0.0113987]
[1766897026496,0.0113969,87805.0,87790.0,0.0113987]
[1766897026795,0.02460968,87804.0,87790.0,0.0113987]
[1766897026996,0.02460968,87803.0,87790.0,0.0113987]
[1766897027197,0.02460968,87802.0,87790.0,0.0113987]
[1766897027397,0.02460968,87801.0,87790.0,0.0113987]
[1766897027596,0.02460968,87800.0,87790.0,0.0113987]
[1766897027786,0.02460968,87799.0,87790.0,0.0113987]
[1766897027986,0.0113969,87805.0,87790.0,0.0113987]
[1766897028201,0.02460945,87804.0,87790.0,0.0113987]
[1766897028499,0.02460945,87803.0,87789.0,0.057]
[1766897028700,0.02460945,87802.0,87789.0,0.057]
[1766897029001,0.02460945,87801.0,87789.0,0.057]
[1766897029197,0.02460945,87800.0,87789.0,0.057]
[1766897029389,0.0113969,87805.0,87789.0,0.0683988]
[1766897029590,0.02460926,87804.0,87789.0,0.0683988]
[1766897029799,0.02460926,87803.0,87789.0,0.0683988]
[1766897029997,0.02460926,87802.0,87789.0,0.0683988]
[1766897030198,0.02460926,87801.0,87789.0,0.0683988]
[1766897030399,0.02460926,87800.0,87789.0,0.0683988]
[1766897030605,0.0113969,87805.0,87789.0,0.0683988]
[1766897030902,0.0246092,87804.0,87789.0,0.0683988]
[1766897031101,0.0246092,87803.0,87789.0,0.0683988]
[1766897031304,0.0246092,87802.0,87789.0,0.0683988]
[1766897031500,0.0246092,87801.0,87789.0,0.0683988]
[1766897031701,0.0246092,87800.0,87789.0,0.0683988]
[1766897031999,0.0113969,87805.0,87789.0,0.0683988]
[1766897032299,0.02460919,87804.0,87789.0,0.0683988]
[1766897032500,0.02460919,87803.0,87789.0,0.0683988]
[1766897032700,0.02460919,87802.0,87789.0,0.0683988]
[1766897032901,0.02460919,87801.0,87789.0,0.0683988]
[1766897033103,0.02460919,87800.0,87789.0,0.0683988]
[1766897033304,0.0113969,87805.0,87789.0,0.0683988]
[1766897033496,0.02460936,87804.0,87789.0,0.0683988]
[1766897033697,0.02460936,87803.0,87789.0,0.0683988]
[1766897033896,0.02460936,87802.0,87789.0,0.0683988]
[1766897034096,0.02460936,87801.0,87789.0,0.0683988]
[1766897034301,0.02460936,87800.0,87789.0,0.0683988]
[1766897034601,0.0113969,87805.0,87789.0,0.0683988]
[1766897034805,0.02460954,87804.0,87789.0,0.0683988]
[1766897035101,0.02460954,87803.0,87789.0,0.0683988]
[1766897035302,0.02460954,87802.0,87789.0,0.0683988]
[1766897035615,0.02460954,87801.0,87789.0,0.0683988]
[1766897035805,0.02460954,87800.0,87789.0,0.0683988]
[1766897036005,0.0113969,87805.0,87789.0,0.0683988]
[1766897036208,0.02460993,87804.0,87789.0,0.0683988]
[1766897036405,0.02460993,87803.0,87789.0,0.0683988]
[1766897036607,0.02460993,87802.0,87789.0,0.0683988]
[1766897036906,0.02460993,87801.0,87789.0,0.0683988]
[1766897037205,0.02460993,87800.0,87789.0,0.0683988]
[1766897037396,0.0113969,87805.0,87789.0,0.0683988]
[1766897037597,0.02461023,87804.0,87789.0,0.0683988]
[1766897037897,0.02461023,87803.0,87789.0,0.0683988]
[1766897038206,0.02461023,87802.0,87789.0,0.0683988]
[1766897038407,0.02461023,87801.0,87789.0,0.0683988]
[1766897038705,0.02461023,87800.0,87789.0,0.0683988]
[1766897038901,0.02461023,87799.0,87789.0,0.0683988]
[1766897039102,0.0113966,87807.0,87790.0,0.0113987]
[1766897039304,0.02461032,87806.0,87790.0,0.0113987]
[1766897039603,0.02461032,87805.0,87790.0,0.0113987]
[1766897039801,0.02461032,87804.0,87790.0,0.0113987]
[1766897039995,0.02461032,87803.0,87790.0,0.0113987]
[1766897040193,0.02461032,87802.0,87790.0,0.0113987]
[1766897040396,0.02461032,87801.0,87790.0,0.0113987]
[1766897040596,0.02461032,87800.0,87791.0,0.057]
[1766897040800,0.02461032,87799.0,87791.0,0.057]
[1766897040997,0.0113969,87805.0,87791.0,0.057]
[1766897041200,0.02460567,87804.0,87791.0,0.057]
[1766897041395,0.02460567,87803.0,87791.0,0.057]
[1766897041595,0.02460567,87802.0,87791.0,0.057]
[1766897041903,0.02460567,87801.0,87791.0,0.057]
[1766897042198,0.02460567,87800.0,87791.0,0.057]
[1766897042394,0.02460567,87799.0,87791.0,0.057]
[1766897042601,0.02460567,87798.0,87791.0,0.057]
[1766897042807,0.0113969,87805.0,87791.0,0.057]
[1766897043121,0.02460574,87804.0,87791.0,0.057]
[1766897043313,0.02460574,87803.0,87791.0,0.057]
[1766897043609,0.02460574,87802.0,87791.0,0.057]
[1766897043800,0.02460574,87801.0,87791.0,0.057]
[1766897043999,0.02460574,87800.0,87791.0,0.057]
[1766897044206,0.02460574,87799.0,87791.0,0.057]
[1766897044405,0.02460574,87798.0,87791.0,0.057]
[1766897044596,0.0113969,87805.0,87791.0,0.057]
[1766897044800,0.02460579,87804.0,87791.0,0.057]
[1766897045109,0.02460579,87803.0,87791.0,0.057]
[1766897045308,0.02460579,87802.0,87791.0,0.057]
[1766897045507,0.02460579,87801.0,87791.0,0.057]
[1766897045709,0.02460579,87800.0,87791.0,0.057]
[1766897045908,0.02460579,87799.0,87791.0,0.057]
[1766897046108,0.02460579,87798.0,87791.0,0.057]
[1766897046308,0.0113969,87805.0,87791.0,0.057]
[1766897046607,0.02460584,87804.0,87791.0,0.057]
[1766897046806,0.02460584,87803.0,87791.0,0.057]
[1766897047106,0.02460584,87802.0,87791.0,0.057]
[1766897047308,0.02460584,87801.0,87791.0,0.057]
[1766897047507,0.02460584,87800.0,87791.0,0.057]
[1766897047697,0.02460584,87799.0,87791.0,0.057]
[1766897047899,0.02460584,87798.0,87791.0,0.057]
[1766897048203,0.0113969,87805.0,87791.0,0.057]
[1766897048408,0.02460589,87804.0,87791.0,0.057]
[1766897048609,0.02460589,87803.0,87791.0,0.057]
[1766897048809,0.02460589,87802.0,87791.0,0.057]
[1766897049007,0.02460589,87801.0,87791.0,0.057]
[1766897049209,0.02460589,87800.0,87791.0,0.057]
[1766897049403,0.02460589,87799.0,87791.0,0.057]
[1766897049607,0.02460589,87798.0,87791.0,0.057]
[1766897049808,0.0113967,87806.0,87791.0,0.057]
[1766897050110,0.02460595,87805.0,87791.0,0.057]
[1766897050411,0.02460595,87804.0,87791.0,0.057]
[1766897050600,0.02460595,87803.0,87792.0,0.0113985]
[1766897050800,0.02460595,87802.0,87792.0,0.0113985]
[1766897051010,0.02460595,87801.0,87792.0,0.0113985]
[1766897051303,0.02460595,87800.0,87792.0,0.0113985]
[1766897051509,0.02460595,87799.0,87792.0,0.0113985]
[1766897051811,0.057,87808.0,87792.0,0.0113985]
[1766897052009,0.02460606,87807.0,87792.0,0.0113985]
[1766897052209,0.02460606,87806.0,87792.0,0.0113985]
[1766897052406,0.02460606,87805.0,87792.0,0.0113985]
[1766897052608,0.02460606,87804.0,87792.0,0.0113985]
[1766897052912,0.02460606,87803.0,87792.0,0.0113985]
[1766897053107,0.02460606,87802.0,87792.0,0.0113985]
[1766897053307,0.02460619,87801.0,87792.0,0.0113985]
[1766897053507,0.02460619,87800.0,87792.0,0.0113985]
[1766897053707,0.02460619,87799.0,87794.0,0.0113981]
[1766897053908,0.057,87808.0,87794.0,0.0113981]
[1766897054114,0.02460619,87807.0,87794.0,0.0113981]
[1766897054310,0.02460619,87806.0,87794.0,0.0113981]
[1766897054518,0.02460619,87805.0,87794.0,0.0113981]
[1766897054718,0.02460619,87804.0,87794.0,0.0113981]
[1766897054914,0.02460619,87803.0,87794.0,0.0113981]
[1766897055220,0.02460619,87802.0,87794.0,0.0113981]
[1766897055412,0.02460619,87801.0,87794.0,0.0113981]
[1766897055613,0.02460619,87800.0,87794.0,0.0113981]
[1766897055812,0.057,87808.0,87794.0,0.0113981]
[1766897056015,0.02460629,87807.0,87794.0,0.0113981]
[1766897056215,0.02460629,87806.0,87791.0,0.0683986]
[1766897056415,0.02460629,87805.0,87791.0,0.0683986]
[1766897056616,0.02460629,87804.0,87791.0,0.0683986]
[1766897056817,0.02460629,87803.0,87791.0,0.0683986]
[1766897057023,0.02460629,87802.0,87791.0,0.057]
[1766897057317,0.02460629,87801.0,87791.0,0.057]
[1766897057506,0.02460629,87800.0,87791.0,0.057]
[1766897057708,0.057,87808.0,87791.0,0.057]
[1766897057909,0.02460618,87807.0,87791.0,0.057]
[1766897058127,0.02460618,87806.0,87791.0,0.057]
[1766897058416,0.02460618,87805.0,87791.0,0.0683986]
[1766897058620,0.02460618,87804.0,87791.0,0.0683986]
[1766897058819,0.02460618,87803.0,87791.0,0.0683986]
[1766897059009,0.02460618,87802.0,87791.0,0.0683986]
[1766897059309,0.02460618,87801.0,87791.0,0.0683986]
[1766897059512,0.0683965,87808.0,87791.0,0.0683986]
[1766897063222,0.0683965,87808.0,87793.0,0.0113983]
[1766897068824,0.057,87808.0,87793.0,0.0113983]
[1766897071426,0.02442165,87807.0,87793.0,0.0113983]
[1766897071723,0.02442165,87806.0,87793.0,0.0113983]
[1766897071926,0.02442165,87805.0,87793.0,0.0113983]
[1766897072222,0.02442165,87804.0,87793.0,0.0113983]
[1766897072423,0.02442165,87803.0,87793.0,0.0113983]
[1766897072613,0.02442165,87802.0,87793.0,0.0113983]
[1766897072924,0.02442165,87801.0,87793.0,0.0113983]
[1766897073133,0.02442165,87800.0,87793.0,0.0113983]
[1766897073327,0.057,87808.0,87793.0,0.0113983]
[1766897073522,0.02442171,87807.0,87793.0,0.0113983]
[1766897073723,0.02442171,87806.0,87793.0,0.0113983]
[1766897073929,0.02442171,87805.0,87793.0,0.0113983]
[1766897074115,0.02442171,87804.0,87793.0,0.0113983]
[1766897074413,0.02442171,87803.0,87793.0,0.0113983]
[1766897074615,0.02442171,87802.0,87793.0,0.0113983]
[1766897074811,0.057,87808.0,87793.0,0.0113983]
[1766897074812,0.02442171,87801.0,87793.0,0.0113983]
[1766897075015,0.02442171,87800.0,87793.0,0.0113983]
[1766897075215,0.057,87808.0,87793.0,0.0113983]
[1766897075415,0.02442174,87807.0,87793.0,0.0113983]
[1766897075612,0.02442174,87806.0,87793.0,0.0113983]
[1766897075816,0.02442174,87805.0,87793.0,0.0113983]
[1766897076016,0.02442174,87804.0,87793.0,0.0113983]
[1766897076230,0.02442174,87803.0,87793.0,0.0113983]
[1766897076437,0.02442174,87802.0,87793.0,0.0113983]
[1766897076729,0.02442174,87801.0,87793.0,0.0113983]
[1766897077037,0.02442174,87800.0,87793.0,0.0113983]
[1766897077219,0.057,87808.0,87793.0,0.0113983]
[1766897077420,0.02442181,87807.0,87793.0,0.0113983]
[1766897077632,0.02442181,87806.0,87793.0,0.0113983]
[1766897077818,0.02442181,87805.0,87793.0,0.0113983]
[1766897078120,0.02442181,87804.0,87791.0,0.057]
[1766897078320,0.02442181,87803.0,87791.0,0.057]
[1766897078620,0.02442181,87802.0,87791.0,0.057]
[1766897078819,0.057,87808.0,87791.0,0.057]
[1766897078820,0.02442181,87801.0,87791.0,0.057]
[1766897079121,0.02442181,87800.0,87791.0,0.057]
[1766897079322,0.057,87808.0,87794.0,0.0113982]
[1766897079525,0.02442198,87807.0,87794.0,0.0113982]
[1766897079716,0.02442198,87806.0,87794.0,0.0113982]
[1766897079917,0.02442198,87805.0,87794.0,0.0113982]
[1766897080116,0.02442198,87804.0,87794.0,0.0113982]
[1766897080416,0.02442198,87803.0,87794.0,0.0113982]
[1766897080612,0.02442198,87802.0,87794.0,0.0113982]
[1766897080812,0.02442198,87801.0,87794.0,0.0113982]
[1766897081012,0.02442198,87800.0,87794.0,0.0113982]
[1766897081224,0.057,87808.0,87794.0,0.0113982]
[1766897081415,0.02442204,87807.0,87794.0,0.0113982]
[1766897081621,0.02442204,87806.0,87794.0,0.0113982]
[1766897081820,0.02442204,87805.0,87794.0,0.0113982]
[1766897082017,0.02442204,87804.0,87794.0,0.0113982]
[1766897082219,0.02442204,87803.0,87794.0,0.0113982]
[1766897082416,0.02442204,87802.0,87794.0,0.0113982]
[1766897082619,0.02442204,87801.0,87794.0,0.0113982]
[1766897082822,0.02442204,87800.0,87794.0,0.0113982]
[1766897083022,0.02442204,87799.0,87794.0,0.0113982]
[1766897083219,0.057,87808.0,87794.0,0.0113982]
[1766897083428,0.02442223,87807.0,87794.0,0.0113982]
[1766897083631,0.02442223,87806.0,87794.0,0.0113982]
[1766897083831,0.02442223,87805.0,87794.0,0.0113982]
[1766897084130,0.02442223,87804.0,87794.0,0.0113982]
[1766897084427,0.02442223,87803.0,87794.0,0.0113982]
[1766897084628,0.02442223,87802.0,87794.0,0.0113982]
[1766897084828,0.02442223,87801.0,87794.0,0.0113982]
[1766897085028,0.02442223,87800.0,87794.0,0.0113982]
[1766897085328,0.02442223,87799.0,87794.0,0.0113982]
[1766897085629,0.057,87808.0,87794.0,0.0113982]
[1766897085828,0.02442248,87807.0,87794.0,0.0113982]
[1766897086029,0.02442248,87806.0,87794.0,0.0113982]
[1766897086329,0.02442248,87805.0,87794.0,0.0113982]
[1766897086530,0.02442248,87804.0,87794.0,0.0113982]
[1766897086729,0.02442248,87803.0,87794.0,0.0113982]
[1766897086929,0.02442248,87802.0,87794.0,0.0113982]
[1766897087129,0.02442248,87801.0,87794.0,0.0113982]
[1766897087430,0.02442248,87800.0,87794.0,0.0113982]
[1766897087629,0.02442248,87799.0,87794.0,0.0113982]
[1766897087831,0.057,87808.0,87794.0,0.0113982]
[1766897088026,0.02442253,87807.0,87794.0,0.0113982]
[1766897088233,0.02442253,87806.0,87794.0,0.0113982]
[1766897088430,0.02442253,87805.0,87794.0,0.0113982]
[1766897088728,0.02442253,87804.0,87794.0,0.0113982]
[1766897088930,0.02442253,87803.0,87794.0,0.0113982]
[1766897089128,0.02442253,87802.0,87794.0,0.0113982]
[1766897089330,0.02442253,87801.0,87794.0,0.0113982]
[1766897089531,0.02442253,87800.0,87794.0,0.0113982]
[1766897089731,0.02442253,87799.0,87794.0,0.0113982]
[1766897089932,0.057,87808.0,87794.0,0.0113982]
[1766897090230,0.02442251,87807.0,87794.0,0.0113982]
[1766897090429,0.02442251,87806.0,87794.0,0.0113982]
[1766897090629,0.02442251,87805.0,87794.0,0.0113982]
[1766897090830,0.02442251,87804.0,87794.0,0.0113982]
[1766897091032,0.02442251,87803.0,87794.0,0.0113982]
[1766897091330,0.02442251,87802.0,87794.0,0.0113982]
[1766897091531,0.02442251,87801.0,87794.0,0.0113982]
[1766897091727,0.02442251,87800.0,87794.0,0.0113982]
[1766897091928,0.057,87808.0,87794.0,0.0113982]
[1766897092128,0.02442251,87807.0,87794.0,0.0113982]
[1766897092328,0.02442251,87806.0,87794.0,0.0113982]
[1766897092531,0.02442251,87805.0,87794.0,0.0113982]
[1766897092728,0.02442251,87804.0,87794.0,0.0113982]
[1766897092930,0.02442251,87803.0,87794.0,0.0113982]
[1766897093230,0.02442251,87802.0,87791.0,0.0683986]
[1766897093433,0.02442251,87801.0,87791.0,0.0683986]
[1766897093633,0.02442251,87800.0,87791.0,0.0683986]
[1766897093834,0.057,87808.0,87791.0,0.0683986]
[1766897094134,0.02442214,87807.0,87791.0,0.0683986]
[1766897094323,0.02442214,87806.0,87791.0,0.0683986]
[1766897094527,0.02442214,87805.0,87791.0,0.0683986]
[1766897094722,0.02442214,87804.0,87791.0,0.0683986]
[1766897095021,0.02442214,87803.0,87791.0,0.0683986]
[1766897095328,0.02442214,87802.0,87791.0,0.0683986]
[1766897095528,0.02442214,87801.0,87791.0,0.0683986]
[1766897095727,0.02442214,87800.0,87791.0,0.0683986]
[1766897096035,0.057,87808.0,87793.0,0.0113983]
[1766897096236,0.02442181,87807.0,87793.0,0.0113983]
[1766897096430,0.02442181,87806.0,87793.0,0.0113983]
[1766897096630,0.02442181,87805.0,87793.0,0.0113983]
[1766897096831,0.02442181,87804.0,87793.0,0.0113983]
[1766897097034,0.02442181,87803.0,87793.0,0.0113983]
[1766897097232,0.02442181,87802.0,87793.0,0.0113983]
[1766897097428,0.02442181,87801.0,87793.0,0.0113983]
[1766897097736,0.02442181,87800.0,87793.0,0.0113983]
[1766897098034,0.057,87808.0,87793.0,0.0113983]
[1766897098338,0.02442167,87807.0,87793.0,0.0113983]
[1766897098537,0.02442167,87806.0,87793.0,0.0113983]
[1766897098836,0.02442167,87805.0,87793.0,0.0113983]
[1766897099034,0.02442167,87804.0,87793.0,0.0113983]
[1766897099332,0.02442167,87803.0,87793.0,0.0113983]
[1766897099533,0.02442167,87802.0,87793.0,0.0113983]
[1766897099739,0.02442167,87801.0,87793.0,0.0113983]
[1766897100035,0.02442167,87800.0,87793.0,0.0113983]
[1766897100237,0.057,87808.0,87793.0,0.0113983]
[1766897100437,0.02442165,87807.0,87793.0,0.0113983]
[1766897100634,0.02442165,87806.0,87793.0,0.0113983]
[1766897100826,0.02442165,87805.0,87793.0,0.0113983]
[1766897101024,0.0683965,87808.0,87793.0,0.0113983]
[1766897101233,0.02442957,87807.0,87793.0,0.0113983]
[1766897101424,0.02442957,87806.0,87793.0,0.0113983]
[1766897101624,0.02442957,87805.0,87793.0,0.0113983]
[1766897101829,0.02442957,87804.0,87793.0,0.0113983]
[1766897102035,0.02442957,87803.0,87793.0,0.0113983]
[1766897102226,0.02442957,87802.0,87793.0,0.0113983]
[1766897102433,0.02442957,87801.0,87793.0,0.0113983]
[1766897102628,0.02442957,87800.0,87793.0,0.0113983]
[1766897102834,0.0683965,87808.0,87793.0,0.0113983]
[1766897103034,0.02442959,87807.0,87793.0,0.0113983]
[1766897103238,0.02442959,87806.0,87793.0,0.0113983]
[1766897103429,0.02442959,87805.0,87793.0,0.0113983]
[1766897103627,0.02442959,87804.0,87793.0,0.0113983]
[1766897103833,0.02442959,87803.0,87793.0,0.0113983]
[1766897104036,0.02442959,87802.0,87793.0,0.0113983]
[1766897104236,0.02442959,87801.0,87793.0,0.0113983]
[1766897104436,0.02442959,87800.0,87793.0,0.0113983]
[1766897104642,0.0683965,87808.0,87793.0,0.0113983]
[1766897104838,0.02442967,87807.0,87793.0,0.0113983]
[1766897105046,0.02442967,87806.0,87793.0,0.0113983]
[1766897105239,0.02442967,87805.0,87793.0,0.0113983]
[1766897105438,0.02442967,87804.0,87793.0,0.0113983]
[1766897105639,0.02442967,87803.0,87793.0,0.0113983]
[1766897105842,0.02442967,87802.0,87793.0,0.0113983]
[1766897106040,0.02442967,87801.0,87793.0,0.0113983]
[1766897106243,0.02442967,87800.0,87793.0,0.0113983]
[1766897106436,0.0683965,87808.0,87793.0,0.0113983]
[1766897106637,0.02442974,87807.0,87793.0,0.0113983]
[1766897106837,0.02442974,87806.0,87793.0,0.0113983]
[1766897107044,0.02442974,87805.0,87793.0,0.0113983]
[1766897107244,0.02442974,87804.0,87793.0,0.0113983]
[1766897107543,0.02442974,87803.0,87793.0,0.0113983]
[1766897107749,0.02442974,87802.0,87793.0,0.0113983]
[1766897107950,0.02442974,87801.0,87793.0,0.0113983]
[1766897108243,0.02442974,87800.0,87793.0,0.0113983]
[1766897108443,0.0683965,87808.0,87793.0,0.0113983]
[1766897108637,0.0244298,87807.0,87793.0,0.0113983]
[1766897108838,0.0244298,87806.0,87793.0,0.0113983]
[1766897109136,0.0244298,87805.0,87793.0,0.0113983]
[1766897109338,0.0244298,87804.0,87793.0,0.0113983]
[1766897109643,0.0244298,87803.0,87793.0,0.0113983]
[1766897109844,0.0244298,87802.0,87793.0,0.0113983]
[1766897110144,0.0244298,87801.0,87793.0,0.0113983]
[1766897110445,0.0244298,87800.0,87793.0,0.0113983]
[1766897110646,0.0683965,87808.0,87793.0,0.0113983]
[1766897110839,0.02442988,87807.0,87793.0,0.0113983]
[1766897111042,0.02442988,87806.0,87793.0,0.0113983]
[1766897111341,0.02442988,87805.0,87793.0,0.0113983]
[1766897111543,0.02442988,87804.0,87793.0,0.0113983]
[1766897111743,0.02442988,87803.0,87793.0,0.0113983]
[1766897111944,0.02442988,87802.0,87793.0,0.0113983]
[1766897112144,0.02442988,87801.0,87793.0,0.0113983]
[1766897112346,0.02442988,87800.0,87793.0,0.0113983]
[1766897112544,0.0683965,87808.0,87793.0,0.0113983]
[1766897112745,0.02442992,87807.0,87793.0,0.0113983]
[1766897112949,0.02442992,87806.0,87793.0,0.0113983]
[1766897113247,0.02442992,87805.0,87793.0,0.0113983]
[1766897113448,0.02442992,87804.0,87793.0,0.0113983]
[1766897113748,0.02442992,87803.0,87793.0,0.0113983]
[1766897113944,0.02442992,87802.0,87793.0,0.0113983]
[1766897114146,0.02442992,87801.0,87793.0,0.0113983]
[1766897114346,0.02442992,87800.0,87793.0,0.0113983]
[1766897114546,0.0683965,87808.0,87791.0,0.057]
[1766897114745,0.02442996,87807.0,87791.0,0.057]
[1766897114946,0.02442996,87806.0,87791.0,0.057]
[1766897115150,0.02442996,87805.0,87791.0,0.057]
[1766897115349,0.02442996,87804.0,87793.0,0.0113983]
[1766897115552,0.02442996,87803.0,87793.0,0.0113983]
[1766897115750,0.02442996,87802.0,87793.0,0.0113983]
[1766897115950,0.02442996,87801.0,87793.0,0.0113983]
[1766897116152,0.02442996,87800.0,87793.0,0.0113983]
[1766897116350,0.0683965,87808.0,87793.0,0.0113983]
[1766897123172,0.06144157,87823.0,87798.0,0.22862624]
[1766897123366,0.0113941,87826.0,87810.0,0.11431312]
[1766897123671,0.0113941,87826.0,87811.0,0.057]
[1766897128270,0.02408646,87825.0,87811.0,0.057]
[1766897128473,0.02408646,87824.0,87811.0,0.057]
[1766897128772,0.02408646,87823.0,87811.0,0.057]
[1766897128973,0.02408646,87822.0,87811.0,0.057]
[1766897129175,0.02408646,87821.0,87811.0,0.057]
[1766897129373,0.02408646,87820.0,87811.0,0.057]
[1766897129576,0.0113941,87826.0,87811.0,0.057]
[1766897129776,0.02408035,87825.0,87811.0,0.057]
[1766897129971,0.02408035,87824.0,87811.0,0.057]
[1766897130177,0.02408035,87823.0,87811.0,0.057]
[1766897130377,0.02408035,87822.0,87811.0,0.057]
[1766897130577,0.0113941,87826.0,87811.0,0.057]
[1766897141383,0.00017082,87827.0,87811.0,0.057]
[1766897141591,0.0113941,87826.0,87811.0,0.057]
[1766897141888,0.0113944,87824.0,87811.0,0.057]
[1766897143681,0.0113947,87822.0,87811.0,0.057]
[1766897145388,0.0113943,87825.0,87811.0,0.057]
[1766897145596,0.0113945,87823.0,87811.0,0.057]
[1766897153499,0.02420716,87822.0,87811.0,0.057]
[1766897153699,0.02420716,87821.0,87811.0,0.057]
[1766897153892,0.02420716,87820.0,87811.0,0.057]
[1766897154093,0.02420716,87819.0,87811.0,0.057]
[1766897154294,0.02420716,87818.0,87811.0,0.057]
[1766897154591,0.02420716,87817.0,87811.0,0.057]
[1766897154792,0.02420716,87816.0,87811.0,0.057]
[1766897154997,0.02420716,87815.0,87811.0,0.057]
[1766897155193,0.02420716,87814.0,87811.0,0.057]
[1766897155392,0.0113945,87823.0,87811.0,0.057]
[1766897155594,0.02420712,87822.0,87811.0,0.057]
[1766897155891,0.02420712,87821.0,87811.0,0.057]
[1766897156094,0.02420712,87820.0,87811.0,0.057]
[1766897156295,0.02420712,87819.0,87811.0,0.057]
[1766897156495,0.02420712,87818.0,87811.0,0.057]
[1766897156693,0.02420712,87817.0,87811.0,0.057]
[1766897157000,0.02420712,87816.0,87811.0,0.057]
[1766897157201,0.02420712,87815.0,87811.0,0.057]
[1766897157391,0.02420712,87814.0,87811.0,0.057]
[1766897157590,0.0113948,87821.0,87811.0,0.057]
[1766897157894,0.02420706,87820.0,87811.0,0.057]
[1766897158198,0.02420706,87819.0,87811.0,0.057]
[1766897158400,0.02420706,87818.0,87811.0,0.057]
[1766897158595,0.02420706,87817.0,87811.0,0.057]
[1766897158894,0.02420706,87816.0,87811.0,0.057]
[1766897159094,0.02420706,87815.0,87811.0,0.057]
[1766897159399,0.02420706,87814.0,87811.0,0.057]
[1766897159592,0.0113948,87821.0,87811.0,0.057]
[1766897159794,0.0242071,87820.0,87811.0,0.057]
[1766897159995,0.0242071,87819.0,87811.0,0.057]
[1766897160191,0.0242071,87818.0,87811.0,0.057]
[1766897160395,0.0242071,87817.0,87811.0,0.057]
[1766897160604,0.0242071,87816.0,87811.0,0.057]
[1766897160901,0.0242071,87815.0,87811.0,0.057]
[1766897161102,0.0242071,87814.0,87811.0,0.057]
[1766897161290,0.0242071,87813.0,87811.0,0.057]
[1766897161494,0.0113948,87821.0,87811.0,0.057]
[1766897161700,0.02430571,87820.0,87811.0,0.057]
[1766897161901,0.02430571,87819.0,87811.0,0.057]
[1766897162100,0.02430571,87818.0,87811.0,0.057]
[1766897162302,0.02430571,87817.0,87811.0,0.057]
[1766897162604,0.02430571,87816.0,87811.0,0.057]
[1766897162805,0.02430571,87815.0,87811.0,0.057]